[Event "Frauenbundesliga 2024-25"]
[Site "Germany"]
[Date "2025.02.15"]
[Round "5.3"]
[White "Schneider, Jana"]
[Black "Dwilewicz, Katarzyna"]
[Result "0-1"]
[Annotator "ChessBase"]
[ECO "B40"]
[WhiteElo "2259"]
[BlackElo "2190"]
[PlyCount "68"]
[EventDate "2024.11.06"]
[EventType "team-tourn"]
[EventCountry "GER"]
[SourceTitle "playchess.com"]
[Source "ChessBase"]
[SourceQuality "1"]
[TimeControl "40/5400+30:1800+30"]

1. e4 {[%emt 0:00:07]} c5 {[%emt 0:00:23]} 2. Nf3 {[%emt 0:00:32]} e6 {[%emt 0:01:05]} 3. d3 {[%emt 0:04:22]} Nc6 {[%emt 0:01:13]} 4. g3 {[%emt 0:00:21]} Nf6 {[%emt 0:02:05]} 5. Bg2 {[%emt 0:00:26]} h6 {[%emt 0:03:05]} 6. O-O {[%emt 0:01:58]} e5 {[%emt 0:00:16]} 7. Nc3 {[%emt 0:03:00]} Be7 {[%emt 0:00:43]} 8. Nd2 {[%emt 0:05:42]} O-O {[%emt 0:03:04]} 9. Nc4 {[%emt 0:00:57]} d6 {[%emt 0:02:37]} 10. Ne3 {[%emt 0:01:55]} Rb8 {[%emt 0:07:48]} 11. f4 {[%emt 0:13:55]} exf4 {[%emt 0:03:33]} 12. gxf4 {[%emt 0:01:07]} Nd4 {[%emt 0:00:57]} 13. Kh1 {[%emt 0:12:42]} b5 {[%emt 0:05:05]} 14. Ncd5 {[%emt 0:10:34]} Re8 {[%emt 0:09:53]} 15. c3 {[%emt 0:01:39]} Ne6 {[%emt 0:01:33]} 16. Nxf6+ {[%emt 0:07:34]} Bxf6 {[%emt 0:00:08]} 17. Qh5 {[%emt 0:00:50]} b4 {[%emt 0:08:25]} 18. Bd2 {[%emt 0:08:30]} bxc3 {[%emt 0:02:08]} 19. bxc3 {[%emt 0:00:24]} Ba6 {[%emt 0:12:01]} 20. e5 {[%emt 0:05:16]} g6 {[%emt 0:04:04]} 21. Qh3 {[%emt 0:00:03]} Bg7 {[%emt 0:02:07]} 22. Nd5 {[%emt 0:06:24]} Rb2 {[%emt 0:08:49]} 23. Rf2 {[%emt 0:01:50]} Bc8 {[%emt 0:07:53]} 24. Qg3 {[%emt 0:00:56]} Bb7 {[%emt 0:00:43]} 25. f5 {[%emt 0:03:53]} Bxe5 {[%emt 0:01:15]} 26. Qh3 {[%emt 0:06:18]} Bxd5 {[%emt 0:09:16]} 27. Bxd5 {[%emt 0:00:09]} Rxd2 {[%emt 0:00:31]} 28. Rxd2 {[%emt 0:01:25]} Nf4 {[%emt 0:00:18]} 29. Qf3 {[%emt 0:01:18]} Kg7 {[%emt 0:03:08]} 30. d4 {[%emt 0:00:33]} cxd4 {[%emt 0:00:29]} 31. cxd4 {[%emt 0:00:01]} Qa5 {[%emt 0:00:10]} 32. dxe5 {[%emt 0:00:59]} Qxd2 {[%emt 0:00:15]} 33. Rd1 {[%emt 0:00:01]} Rxe5 {[%emt 0:00:20]} 34. fxg6 {[%emt 0:01:15]} Re1+ {[%emt 0:00:17]} 0-1

[Event "Frauenbundesliga 2024-25"]
[Site "Germany"]
[Date "2025.02.15"]
[Round "5.3"]
[White "Lach, Aleksandra"]
[Black "Trunz, Michelle"]
[Result "1-0"]
[Annotator "ChessBase"]
[ECO "B23"]
[WhiteElo "2205"]
[BlackElo "2161"]
[PlyCount "77"]
[EventDate "2024.11.06"]
[EventType "team-tourn"]
[EventCountry "GER"]
[SourceTitle "playchess.com"]
[Source "ChessBase"]
[SourceQuality "1"]
[TimeControl "40/5400+30:1800+30"]

1. e4 {[%emt 0:00:10]} c5 {[%emt 0:00:06]} 2. Nc3 {[%emt 0:00:14]} d6 {[%emt 0:00:07]} 3. f4 {[%emt 0:00:33]} g6 {[%emt 0:00:05]} 4. Nf3 {[%emt 0:00:17]} Bg7 {[%emt 0:00:06]} 5. Bc4 {[%emt 0:01:47]} Nc6 {[%emt 0:00:07]} 6. O-O {[%emt 0:00:49]} e6 {[%emt 0:02:27]} 7. d4 {[%emt 0:07:59]} cxd4 {[%emt 0:02:42]} 8. Nb5 {[%emt 0:00:29]} a6 {[%emt 0:09:04]} 9. Nbxd4 {[%emt 0:06:16]} Nge7 {[%emt 0:00:12]} 10. Bb3 {[%emt 0:04:14]} O-O {[%emt 0:02:36]} 11. c3 {[%emt 0:05:35]} Qc7 {[%emt 0:03:56]} 12. Kh1 {[%emt 0:09:55]} b5 {[%emt 0:03:40]} 13. Qe1 {[%emt 0:05:27]} Na5 {[%emt 0:04:41]} 14. Bc2 {[%emt 0:01:46]} e5 {[%emt 0:08:05]} 15. Nb3 {[%emt 0:02:06]} Nc4 {[%emt 0:01:38]} 16. f5 {[%emt 0:06:25]} gxf5 {[%emt 0:09:27]} 17. exf5 {[%emt 0:00:20]} f6 {[%emt 0:00:41]} 18. Nh4 {[%emt 0:05:03]} Bb7 {[%emt 0:02:23]} 19. Nd2 {[%emt 0:10:13]} Nb6 {[%emt 0:09:05]} 20. Ne4 {[%emt 0:03:02]} d5 {[%emt 0:02:06]} 21. Ng3 {[%emt 0:04:00]} Kf7 {[%emt 0:08:00]} 22. Qe2 {[%emt 0:03:06]} Rh8 {[%emt 0:03:39]} 23. Qh5+ {[%emt 0:00:58]} Kf8 {[%emt 0:01:19]} 24. Nf3 {[%emt 0:01:04]} h6 {[%emt 0:03:43]} 25. Nxe5 {[%emt 0:02:05]} Qxe5 {[%emt 0:07:28]} 26. Bf4 {[%emt 0:00:14]} Nc6 {[%emt 0:02:27]} 27. Bxe5 {[%emt 0:01:00]} Nxe5 {[%emt 0:00:04]} 28. Ne2 {[%emt 0:02:45]} Rd8 {[%emt 0:02:50]} 29. Nd4 {[%emt 0:02:20]} Bc8 {[%emt 0:00:17]} 30. a4 {[%emt 0:00:41]} bxa4 {[%emt 0:01:15]} 31. Bxa4 {[%emt 0:00:21]} Nbc4 {[%emt 0:01:43]} 32. Rae1 {[%emt 0:03:37]} Nd2 {[%emt 0:05:04]} 33. Rf4 {[%emt 0:05:51]} Ne4 {[%emt 0:00:40]} 34. Bc2 {[%emt 0:01:02]} Nd6 {[%emt 0:02:20]} 35. Ne6+ {[%emt 0:02:01]} Bxe6 {[%emt 0:00:09]} 36. fxe6 {[%emt 0:00:01]} Ke7 {[%emt 0:00:50]} 37. Ra4 {[%emt 0:05:14]} Ra8 {[%emt 0:01:26]} 38. Bb3 {[%emt 0:00:00]} Kxe6 {[%emt 0:00:43]} 39. Qg4+ {[%emt 0:00:00]} 1-0

[Event "Frauenbundesliga 2024-25"]
[Site "Germany"]
[Date "2025.02.15"]
[Round "5.3"]
[White "Otikova, Elina"]
[Black "Zatonskih, Anna"]
[Result "0-1"]
[Annotator "ChessBase"]
[ECO "D20"]
[WhiteElo "2092"]
[BlackElo "2302"]
[PlyCount "66"]
[EventDate "2024.11.06"]
[EventType "team-tourn"]
[EventCountry "GER"]
[SourceTitle "playchess.com"]
[Source "ChessBase"]
[SourceQuality "1"]
[TimeControl "40/5400+30:1800+30"]

1. e4 {[%emt 0:00:02]} e6 {[%emt 0:00:09]} 2. d4 {[%emt 0:00:08]} d5 {[%emt 0:00:04]} 3. exd5 {[%emt 0:01:35]} exd5 {[%emt 0:00:09]} 4. Nf3 {[%emt 0:00:06]} Bd6 {[%emt 0:10:15]} 5. c4 {[%emt 0:00:29]} dxc4 {[%emt 0:00:04]} 6. Bxc4 {[%emt 0:00:18]} Nf6 {[%emt 0:00:05]} 7. Nc3 {[%emt 0:04:51]} O-O {[%emt 0:10:26]} 8. O-O {[%emt 0:05:26]} Nc6 {[%emt 0:10:24]} 9. h3 {[%emt 0:05:27]} h6 {[%emt 0:07:11]} 10. a3 {[%emt 0:10:29]} a6 {[%emt 0:06:59]} 11. Qd3 {[%emt 0:08:47]} b5 {[%emt 0:17:19]} 12. Ba2 {[%emt 0:01:59]} Ne7 {[%emt 0:00:10]} 13. Nh4 {[%emt 0:08:17]} Bb7 {[%emt 0:01:06]} 14. Nf5 {[%emt 0:13:01]} c5 {[%emt 0:10:16]} 15. Be3 {[%emt 0:22:11]} c4 {[%emt 0:04:38]} 16. Nxe7+ {[%emt 0:00:27]} Qxe7 {[%emt 0:01:21]} 17. Qc2 {[%emt 0:01:46]} Bc7 {[%emt 0:00:57]} 18. Rad1 {[%emt 0:02:49]} Qd6 {[%emt 0:02:22]} 19. f4 {[%emt 0:04:22]} Rfe8 {[%emt 0:00:18]} 20. Qf2 {[%emt 0:00:35]} Rad8 {[%emt 0:01:48]} 21. Bb1 {[%emt 0:01:12]} Bb6 {[%emt 0:01:32]} 22. Kh2 {[%emt 0:04:34]} Re7 {[%emt 0:01:32]} 23. Rfe1 {[%emt 0:00:38]} Rde8 {[%emt 0:00:20]} 24. Qd2 {[%emt 0:02:04]} Rxe3 {[%emt 0:03:32]} 25. Rxe3 {[%emt 0:00:06]} Qxf4+ {[%emt 0:00:04]} 26. Rg3 {[%emt 0:00:19]} Qxd2 {[%emt 0:01:03]} 27. Rxd2 {[%emt 0:00:06]} Bc7 {[%emt 0:00:01]} 28. d5 {[%emt 0:01:23]} Bd6 {[%emt 0:01:09]} 29. Re2 {[%emt 0:00:59]} Rxe2 {[%emt 0:03:09]} 30. Nxe2 {[%emt 0:00:05]} Nh5 {[%emt 0:00:11]} 31. Be4 {[%emt 0:00:29]} Nxg3 {[%emt 0:00:46]} 32. Nxg3 {[%emt 0:00:05]} g5 {[%emt 0:00:16]} 33. Bf3 {[%emt 0:00:41]} Kf8 {[%emt 0:00:35]} 0-1

[Event "Frauenbundesliga 2024-25"]
[Site "Germany"]
[Date "2025.02.15"]
[Round "5.4"]
[White "Kachiani-Gersinska, Ketino"]
[Black "Rath, Alina"]
[Result "1-0"]
[Annotator "ChessBase"]
[ECO "D30"]
[WhiteElo "2310"]
[BlackElo "2011"]
[PlyCount "97"]
[EventDate "2024.11.06"]
[EventType "team-tourn"]
[EventCountry "GER"]
[SourceTitle "playchess.com"]
[Source "ChessBase"]
[SourceQuality "1"]
[TimeControl "40/5400+30:1800+30"]

1. d4 {[%emt 0:00:06]} d5 {[%emt 0:00:06]} 2. c4 {[%emt 0:00:10]} e6 {[%emt 0:00:10]} 3. Nf3 {[%emt 0:00:10]} c5 {[%emt 0:00:22]} 4. cxd5 {[%emt 0:03:05]} exd5 {[%emt 0:00:14]} 5. g3 {[%emt 0:00:06]} Nc6 {[%emt 0:00:06]} 6. Bg2 {[%emt 0:00:07]} Nf6 {[%emt 0:00:18]} 7. O-O {[%emt 0:13:04]} Be7 {[%emt 0:01:27]} 8. Be3 {[%emt 0:00:10]} c4 {[%emt 0:00:55]} 9. b3 {[%emt 0:00:47]} cxb3 {[%emt 0:01:10]} 10. Qxb3 {[%emt 0:00:07]} Na5 {[%emt 0:04:55]} 11. Qd3 {[%emt 0:00:15]} Nc4 {[%emt 0:02:30]} 12. Ne5 {[%emt 0:01:50]} Nxe3 {[%emt 0:02:57]} 13. Qxe3 {[%emt 0:00:45]} O-O {[%emt 0:00:32]} 14. h3 {[%emt 0:11:56]} Bf5 {[%emt 0:05:24]} 15. Qb3 {[%emt 0:07:28]} Rb8 {[%emt 0:04:27]} 16. Nc3 {[%emt 0:00:22]} Ne4 {[%emt 0:17:15]} 17. Rfc1 {[%emt 0:08:58]} Nxc3 {[%emt 0:02:33]} 18. Rxc3 {[%emt 0:00:07]} Be6 {[%emt 0:00:23]} 19. Rac1 {[%emt 0:06:05]} Qa5 {[%emt 0:13:50]} 20. Nd3 {[%emt 0:13:44]} Rfd8 {[%emt 0:05:54]} 21. Nc5 {[%emt 0:08:48]} Qb6 {[%emt 0:06:12]} 22. Qa4 {[%emt 0:05:57]} a6 {[%emt 0:03:51]} 23. e3 {[%emt 0:02:41]} h6 {[%emt 0:03:05]} 24. Qd1 {[%emt 0:02:35]} Qd6 {[%emt 0:03:56]} 25. Qb3 {[%emt 0:01:28]} Bc8 {[%emt 0:02:56]} 26. Nd3 {[%emt 0:00:20]} Be6 {[%emt 0:01:10]} 27. Nc5 {[%emt 0:01:33]} Bc8 {[%emt 0:00:24]} 28. Bf1 {[%emt 0:00:09]} b5 {[%emt 0:02:31]} 29. Nd3 {[%emt 0:02:00]} Bb7 {[%emt 0:00:27]} 30. Nc5 {[%emt 0:04:13]} Ba8 {[%emt 0:03:11]} 31. a4 {[%emt 0:00:23]} b4 {[%emt 0:01:00]} 32. R3c2 {[%emt 0:00:06]} a5 {[%emt 0:00:23]} 33. Na6 {[%emt 0:02:34]} Rb6 {[%emt 0:02:50]} 34. Nc7 {[%emt 0:00:50]} Bc6 {[%emt 0:03:27]} 35. Nb5 {[%emt 0:00:09]} Qf6 {[%emt 0:02:05]} 36. Na7 {[%emt 0:00:58]} Bb7 {[%emt 0:00:50]} 37. Nc8 {[%emt 0:00:55]} Re6 {[%emt 0:03:10]} 38. Rc7 {[%emt 0:01:08]} Bxc8 {[%emt 0:01:38]} 39. Rxc8 {[%emt 0:00:03]} Red6 {[%emt 0:00:36]} 40. R8c5 {[%emt 0:01:07]} R6d7 {[%emt 0:00:45]} 41. Rxa5 {[%emt 0:30:18]} Qd6 {[%emt 0:30:23]} 42. Bg2 {[%emt 0:03:04]} Qe6 {[%emt 0:00:00]} 43. Rb5 {[%emt 0:00:00]} Bf8 {[%emt 0:00:00]} 44. h4 {[%emt 0:00:00]} Kh8 {[%emt 0:00:00]} 45. a5 {[%emt 0:00:00]} f5 {[%emt 0:00:00]} 46. h5 {[%emt 0:00:00]} Qa6 {[%emt 0:00:00]} 47. Bf1 {[%emt 0:00:00]} Qa8 {[%emt 0:00:00]} 48. Bd3 {[%emt 0:00:00]} Rf7 {[%emt 0:00:00]} 49. Qb1 {[%emt 0:00:00]} 1-0

[Event "Frauenbundesliga 2024-25"]
[Site "Germany"]
[Date "2025.02.15"]
[Round "5.4"]
[White "Kulovana, Eva"]
[Black "Koehler, Inken"]
[Result "1/2-1/2"]
[Annotator "NA"]
[ECO "B42"]
[WhiteElo "2112"]
[BlackElo "2053"]
[PlyCount "82"]
[EventDate "2024.11.06"]
[EventType "team-tourn"]
[EventCountry "GER"]
[SourceTitle "playchess.com"]
[Source "ChessBase"]
[SourceQuality "1"]
[TimeControl "40/5400+30:1800+30"]

1. e4 {[%emt 0:00:04]} c5 {[%emt 0:00:43]} 2. Nf3 {[%emt 0:00:07]} e6 {[%emt 0:00:04]} 3. d4 {[%emt 0:00:15]} cxd4 {[%emt 0:00:06]} 4. Nxd4 {[%emt 0:00:05]} a6 {[%emt 0:00:15]} 5. Bd3 {[%emt 0:00:14]} Qc7 {[%emt 0:00:42]} 6. O-O {[%emt 0:01:06]} Nf6 {[%emt 0:00:49]} 7. Qe2 {[%emt 0:02:10]} d6 {[%emt 0:01:42]} 8. c4 {[%emt 0:01:12]} Nbd7 {[%emt 0:04:28]} 9. Nc3 {[%emt 0:02:01]} Ne5 {[%emt 0:03:52]} 10. Kh1 {[%emt 0:07:29]} b6 {[%emt 0:07:28]} 11. f4 {[%emt 0:06:14]} Nxd3 {[%emt 0:00:32]} 12. Qxd3 {[%emt 0:00:08]} Bb7 {[%emt 0:01:05]} 13. Bd2 {[%emt 0:08:04]} Be7 {[%emt 0:03:15]} 14. f5 {[%emt 0:05:02]} e5 {[%emt 0:07:05]} 15. Nc2 {[%emt 0:01:55]} Rc8 {[%emt 0:05:27]} 16. Ne3 {[%emt 0:11:54]} Qc5 {[%emt 0:21:18]} 17. Ned5 {[%emt 0:13:05]} Qxc4 {[%emt 0:04:00]} 18. Nxf6+ {[%emt 0:00:50]} gxf6 {[%emt 0:02:08]} 19. Qf3 {[%emt 0:02:18]} b5 {[%emt 0:05:12]} 20. Rfe1 {[%emt 0:10:37]} Rg8 {[%emt 0:22:39]} 21. Nd5 {[%emt 0:12:42]} Qc2 {[%emt 0:03:24]} 22. Bc3 {[%emt 0:03:02]} Bxd5 {[%emt 0:01:14]} 23. exd5 {[%emt 0:00:16]} Rg5 {[%emt 0:01:20]} 24. Rf1 {[%emt 0:04:19]} Rc4 {[%emt 0:01:13]} 25. Rf2 {[%emt 0:00:54]} Qe4 {[%emt 0:00:24]} 26. Qxe4 {[%emt 0:01:29]} Rxe4 {[%emt 0:00:01]} 27. Bd2 {[%emt 0:00:09]} Rgg4 {[%emt 0:01:00]} 28. h3 {[%emt 0:00:50]} Rg3 {[%emt 0:00:22]} 29. Rc1 {[%emt 0:00:57]} Rc4 {[%emt 0:01:11]} 30. Rxc4 {[%emt 0:01:16]} bxc4 {[%emt 0:00:02]} 31. Rf3 {[%emt 0:00:09]} Rxf3 {[%emt 0:01:17]} 32. gxf3 {[%emt 0:00:01]} Bd8 {[%emt 0:00:55]} 33. b3 {[%emt 0:01:20]} cxb3 {[%emt 0:00:31]} 34. axb3 {[%emt 0:00:01]} Bb6 {[%emt 0:00:21]} 35. Kg2 {[%emt 0:00:27]} Kd7 {[%emt 0:01:00]} 36. Kf1 {[%emt 0:00:26]} Kc7 {[%emt 0:00:33]} 37. Ke2 {[%emt 0:00:17]} Bd4 {[%emt 0:00:15]} 38. Kd3 {[%emt 0:00:17]} Kb6 {[%emt 0:00:28]} 39. Kc4 {[%emt 0:00:09]} Bc5 {[%emt 0:00:58]} 40. Bh6 {[%emt 0:00:37]} Bf2 {[%emt 0:00:25]} 41. Bf8 {[%emt 0:31:52]} Kc7 {[%emt 0:03:20]} 1/2-1/2

[Event "Frauenbundesliga 2024-25"]
[Site "Germany"]
[Date "2025.02.15"]
[Round "5.4"]
[White "Valkova, Angelika"]
[Black "Kulon, Klaudia"]
[Result "0-1"]
[Annotator "ChessBase"]
[ECO "E10"]
[WhiteElo "2003"]
[BlackElo "2393"]
[PlyCount "70"]
[EventDate "2024.11.06"]
[EventType "team-tourn"]
[EventCountry "GER"]
[SourceTitle "playchess.com"]
[Source "ChessBase"]
[SourceQuality "1"]
[TimeControl "40/5400+30:1800+30"]

1. d4 {[%emt 0:00:03]} Nf6 {[%emt 0:00:07]} 2. c4 {[%emt 0:00:04]} Nc6 {[%emt 0:00:28]} 3. Nf3 {[%emt 0:00:13]} e6 {[%emt 0:00:09]} 4. a3 {[%emt 0:00:15]} d6 {[%emt 0:00:56]} 5. Nc3 {[%emt 0:00:31]} g6 {[%emt 0:00:30]} 6. d5 {[%emt 0:04:55]} exd5 {[%emt 0:04:33]} 7. cxd5 {[%emt 0:00:46]} Ne7 {[%emt 0:01:35]} 8. e4 {[%emt 0:13:51]} Bg7 {[%emt 0:00:51]} 9. e5 {[%emt 0:09:31]} dxe5 {[%emt 0:02:08]} 10. Bb5+ {[%emt 0:01:32]} Bd7 {[%emt 0:06:57]} 11. Bc4 {[%emt 0:02:37]} O-O {[%emt 0:09:17]} 12. Bg5 {[%emt 0:13:51]} h6 {[%emt 0:03:21]} 13. Bxf6 {[%emt 0:08:37]} Bxf6 {[%emt 0:00:05]} 14. Ne4 {[%emt 0:02:30]} Bg7 {[%emt 0:00:39]} 15. d6 {[%emt 0:02:24]} Nf5 {[%emt 0:02:46]} 16. dxc7 {[%emt 0:18:02]} Qxc7 {[%emt 0:00:26]} 17. Rc1 {[%emt 0:00:50]} Bc6 {[%emt 0:00:49]} 18. Nfd2 {[%emt 0:02:21]} Rad8 {[%emt 0:03:43]} 19. Qg4 {[%emt 0:02:07]} Rd4 {[%emt 0:08:52]} 20. O-O {[%emt 0:04:49]} Kh8 {[%emt 0:08:03]} 21. Qe2 {[%emt 0:03:20]} Qd7 {[%emt 0:04:05]} 22. f3 {[%emt 0:03:22]} Qe7 {[%emt 0:03:18]} 23. Nb3 {[%emt 0:01:03]} Rdd8 {[%emt 0:00:06]} 24. Qf2 {[%emt 0:01:09]} b6 {[%emt 0:04:51]} 25. Rfd1 {[%emt 0:02:18]} h5 {[%emt 0:00:21]} 26. g3 {[%emt 0:01:23]} Bh6 {[%emt 0:00:31]} 27. Re1 {[%emt 0:01:03]} Bxc1 {[%emt 0:00:58]} 28. Rxc1 {[%emt 0:00:28]} Nd4 {[%emt 0:00:28]} 29. Nbd2 {[%emt 0:00:23]} f5 {[%emt 0:00:36]} 30. Nc3 {[%emt 0:00:21]} Qg5 {[%emt 0:00:36]} 31. Rd1 {[%emt 0:01:23]} h4 {[%emt 0:00:45]} 32. a4 {[%emt 0:00:00]} Kg7 {[%emt 0:02:42]} 33. Bf1 {[%emt 0:00:01]} hxg3 {[%emt 0:01:03]} 34. hxg3 {[%emt 0:00:07]} Qxd2 {[%emt 0:01:53]} 35. Rxd2 {[%emt 0:00:23]} Nxf3+ {[%emt 0:00:04]} 0-1

[Event "Frauenbundesliga 2024-25"]
[Site "Germany"]
[Date "2025.02.15"]
[Round "5.5"]
[White "Cyfka, Karina"]
[Black "Gheng, Simona"]
[Result "1-0"]
[Annotator "ChessBase"]
[ECO "D00"]
[WhiteElo "2366"]
[BlackElo "1968"]
[PlyCount "71"]
[EventDate "2024.11.06"]
[EventType "team-tourn"]
[EventCountry "GER"]
[SourceTitle "playchess.com"]
[Source "ChessBase"]
[SourceQuality "1"]
[TimeControl "40/5400+30:1800+30"]

1. d4 {[%emt 0:00:03]} d5 {[%emt 0:00:21]} 2. Nc3 {[%emt 0:00:08]} Nf6 {[%emt 0:00:26]} 3. Bf4 {[%emt 0:00:08]} e6 {[%emt 0:00:23]} 4. e3 {[%emt 0:00:42]} Bd6 {[%emt 0:03:24]} 5. Qf3 {[%emt 0:00:33]} a6 {[%emt 0:06:05]} 6. g4 {[%emt 0:00:57]} Bxf4 {[%emt 0:02:07]} 7. Qxf4 {[%emt 0:01:49]} Qd6 {[%emt 0:00:55]} 8. Qxd6 {[%emt 0:02:37]} cxd6 {[%emt 0:00:07]} 9. f3 {[%emt 0:01:16]} h6 {[%emt 0:02:53]} 10. Bd3 {[%emt 0:02:17]} Nc6 {[%emt 0:03:07]} 11. O-O-O {[%emt 0:03:50]} b5 {[%emt 0:01:34]} 12. h4 {[%emt 0:04:18]} Bb7 {[%emt 0:02:49]} 13. Nge2 {[%emt 0:03:19]} Ke7 {[%emt 0:03:42]} 14. g5 {[%emt 0:04:05]} hxg5 {[%emt 0:04:40]} 15. hxg5 {[%emt 0:00:09]} Nd7 {[%emt 0:00:12]} 16. Nf4 {[%emt 0:01:17]} Nb4 {[%emt 0:06:22]} 17. Be2 {[%emt 0:06:42]} Nb6 {[%emt 0:06:32]} 18. a3 {[%emt 0:05:28]} Nc6 {[%emt 0:01:00]} 19. g6 {[%emt 0:00:06]} Rxh1 {[%emt 0:04:09]} 20. Rxh1 {[%emt 0:00:10]} Nc4 {[%emt 0:00:43]} 21. Ncxd5+ {[%emt 0:07:28]} exd5 {[%emt 0:03:40]} 22. Nxd5+ {[%emt 0:00:10]} Ke6 {[%emt 0:00:34]} 23. Bxc4 {[%emt 0:02:51]} bxc4 {[%emt 0:00:38]} 24. Nc7+ {[%emt 0:00:05]} Kf6 {[%emt 0:00:16]} 25. Nxa8 {[%emt 0:00:11]} Bxa8 {[%emt 0:00:04]} 26. Rh8 {[%emt 0:03:42]} Bb7 {[%emt 0:00:43]} 27. gxf7 {[%emt 0:01:03]} Kxf7 {[%emt 0:00:09]} 28. d5 {[%emt 0:01:48]} Ne7 {[%emt 0:03:30]} 29. e4 {[%emt 0:00:12]} Ng8 {[%emt 0:00:33]} 30. Kd2 {[%emt 0:00:18]} a5 {[%emt 0:00:45]} 31. Kc3 {[%emt 0:00:04]} Ba6 {[%emt 0:02:15]} 32. Kd4 {[%emt 0:00:13]} Bb5 {[%emt 0:01:05]} 33. f4 {[%emt 0:00:16]} g5 {[%emt 0:04:33]} 34. fxg5 {[%emt 0:01:26]} Kg7 {[%emt 0:00:17]} 35. Rh2 {[%emt 0:00:33]} Ne7 {[%emt 0:01:49]} 36. Rf2 {[%emt 0:00:09]} 1-0

[Event "Frauenbundesliga 2024-25"]
[Site "Germany"]
[Date "2025.02.15"]
[Round "5.5"]
[White "Brandt, Carina"]
[Black "Trunz, Elena"]
[Result "0-1"]
[Annotator "NA"]
[ECO "B23"]
[WhiteElo "2070"]
[BlackElo "2089"]
[PlyCount "96"]
[EventDate "2024.11.06"]
[EventType "team-tourn"]
[EventCountry "GER"]
[SourceTitle "playchess.com"]
[Source "ChessBase"]
[SourceQuality "1"]
[TimeControl "40/5400+30:1800+30"]

1. e4 {[%emt 0:00:03]} c5 {[%emt 0:00:09]} 2. Nc3 {[%emt 0:00:13]} d6 {[%emt 0:00:17]} 3. d4 {[%emt 0:00:20]} cxd4 {[%emt 0:01:05]} 4. Qxd4 {[%emt 0:00:08]} Nc6 {[%emt 0:00:39]} 5. Qd2 {[%emt 0:00:11]} Nf6 {[%emt 0:00:34]} 6. b3 {[%emt 0:00:34]} e6 {[%emt 0:01:29]} 7. Bb2 {[%emt 0:08:13]} d5 {[%emt 0:02:44]} 8. exd5 {[%emt 0:09:17]} exd5 {[%emt 0:00:09]} 9. O-O-O {[%emt 0:00:21]} Be6 {[%emt 0:00:38]} 10. f4 {[%emt 0:06:05]} Bb4 {[%emt 0:11:35]} 11. Qd3 {[%emt 0:10:03]} Qa5 {[%emt 0:09:09]} 12. Nge2 {[%emt 0:08:43]} O-O-O {[%emt 0:23:02]} 13. a4 {[%emt 0:16:19]} Ne4 {[%emt 0:11:57]} 14. Qf3 {[%emt 0:04:12]} g6 {[%emt 0:16:27]} 15. Nb5 {[%emt 0:03:23]} Rhe8 {[%emt 0:01:43]} 16. c3 {[%emt 0:07:59]} Bf8 {[%emt 0:01:56]} 17. Ned4 {[%emt 0:02:54]} Bd7 {[%emt 0:02:02]} 18. Nc2 {[%emt 0:06:22]} a6 {[%emt 0:02:13]} 19. Nbd4 {[%emt 0:00:08]} Bh6 {[%emt 0:01:54]} 20. Kb1 {[%emt 0:01:56]} Kb8 {[%emt 0:01:14]} 21. h3 {[%emt 0:02:40]} Rc8 {[%emt 0:00:33]} 22. Nxc6+ {[%emt 0:05:15]} bxc6 {[%emt 0:00:45]} 23. Nb4 {[%emt 0:00:41]} Bg7 {[%emt 0:01:35]} 24. g4 {[%emt 0:02:10]} Nc5 {[%emt 0:01:37]} 25. Ka2 {[%emt 0:00:49]} Re7 {[%emt 0:02:39]} 26. Rh2 {[%emt 0:01:28]} Rce8 {[%emt 0:00:36]} 27. Re2 {[%emt 0:00:02]} Rxe2 {[%emt 0:00:48]} 28. Bxe2 {[%emt 0:00:02]} Qb6 {[%emt 0:00:23]} 29. Qf2 {[%emt 0:02:02]} Kb7 {[%emt 0:00:55]} 30. Ba3 {[%emt 0:01:52]} a5 {[%emt 0:01:28]} 31. Rb1 {[%emt 0:00:30]} axb4 {[%emt 0:00:31]} 32. Bxb4 {[%emt 0:00:09]} Ne4 {[%emt 0:00:42]} 33. Qf3 {[%emt 0:01:00]} Nd2 {[%emt 0:00:31]} 34. Qd3 {[%emt 0:00:31]} Nxb1 {[%emt 0:00:10]} 35. Kxb1 {[%emt 0:00:01]} Re3 {[%emt 0:00:59]} 36. Qd2 {[%emt 0:00:42]} Rxh3 {[%emt 0:01:02]} 37. a5 {[%emt 0:00:10]} Qg1+ {[%emt 0:00:11]} 38. Kc2 {[%emt 0:00:16]} Rh1 {[%emt 0:00:14]} 39. a6+ {[%emt 0:00:17]} Ka8 {[%emt 0:00:22]} 40. Kd3 {[%emt 0:00:53]} Rh3+ {[%emt 0:00:27]} 41. Kc2 {[%emt 0:02:20]} Rh1 {[%emt 0:03:55]} 42. Kd3 {[%emt 0:00:36]} Qb1+ {[%emt 0:00:14]} 43. Qc2 {[%emt 0:01:12]} Qxc2+ {[%emt 0:03:55]} 44. Kxc2 {[%emt 0:00:02]} Rh4 {[%emt 0:02:04]} 45. c4 {[%emt 0:01:06]} Bxg4 {[%emt 0:00:47]} 46. Bf1 {[%emt 0:00:28]} Bf5+ {[%emt 0:00:21]} 47. Kd1 {[%emt 0:00:24]} Rxf4 {[%emt 0:00:41]} 48. Bg2 {[%emt 0:00:06]} Be4 {[%emt 0:00:57]} 0-1

[Event "Frauenbundesliga 2024-25"]
[Site "Germany"]
[Date "2025.02.15"]
[Round "5.5"]
[White "Giebel, Christine"]
[Black "Heinemann, Josefine"]
[Result "0-1"]
[Annotator "ChessBase"]
[ECO "B50"]
[WhiteElo "1874"]
[BlackElo "2294"]
[PlyCount "48"]
[EventDate "2024.11.06"]
[EventType "team-tourn"]
[EventCountry "GER"]
[SourceTitle "playchess.com"]
[Source "ChessBase"]
[SourceQuality "1"]
[TimeControl "40/5400+30:1800+30"]

1. e4 {[%emt 0:00:04]} c5 {[%emt 0:00:05]} 2. Nf3 {[%emt 0:00:07]} d6 {[%emt 0:00:05]} 3. Bc4 {[%emt 0:00:19]} Nf6 {[%emt 0:01:11]} 4. d3 {[%emt 0:00:27]} e6 {[%emt 0:00:14]} 5. Bb3 {[%emt 0:00:45]} Be7 {[%emt 0:03:35]} 6. c3 {[%emt 0:00:57]} O-O {[%emt 0:00:58]} 7. O-O {[%emt 0:00:54]} Nc6 {[%emt 0:01:10]} 8. Re1 {[%emt 0:02:36]} e5 {[%emt 0:07:24]} 9. Nbd2 {[%emt 0:02:45]} h6 {[%emt 0:02:18]} 10. Nf1 {[%emt 0:03:37]} Re8 {[%emt 0:02:06]} 11. Ng3 {[%emt 0:07:07]} Bf8 {[%emt 0:01:12]} 12. Nh4 {[%emt 0:19:38]} d5 {[%emt 0:07:26]} 13. exd5 {[%emt 0:13:23]} Nxd5 {[%emt 0:00:10]} 14. Nhf5 {[%emt 0:09:10]} Be6 {[%emt 0:05:37]} 15. Bc2 {[%emt 0:06:45]} Qd7 {[%emt 0:06:05]} 16. Ne3 {[%emt 0:05:10]} Rad8 {[%emt 0:05:07]} 17. Qf3 {[%emt 0:08:37]} Nf4 {[%emt 0:03:40]} 18. d4 {[%emt 0:07:31]} cxd4 {[%emt 0:01:25]} 19. Qe4 {[%emt 0:01:10]} g6 {[%emt 0:01:05]} 20. cxd4 {[%emt 0:01:24]} f5 {[%emt 0:04:23]} 21. Qf3 {[%emt 0:04:50]} Nxd4 {[%emt 0:00:06]} 22. Qd1 {[%emt 0:00:01]} Qc6 {[%emt 0:01:27]} 23. Bd2 {[%emt 0:01:05]} Nxc2 {[%emt 0:00:13]} 24. Nxc2 {[%emt 0:00:11]} Qxg2# {[%emt 0:00:05]} 0-1